[Event "Live Chess"]
[Site "Chess.com"]
[Date "2010.12.14"]
[Round "-"]
[White "Beastin01"]
[Black "hipposcottimus"]
[Result "0-1"]
[CurrentPosition "r6k/ppp5/7p/4N1p1/P5B1/3P3K/8/R7 w - -"]
[Timezone "UTC"]
[ECO "A00"]
[ECOUrl "https://www.chess.com/openings/Mieses-Opening-Reversed-Rat-Variation"]
[UTCDate "2010.12.14"]
[UTCTime "03:37:21"]
[WhiteElo "1406"]
[BlackElo "1692"]
[TimeControl "60"]
[Termination "hipposcottimus won on time"]
[StartTime "03:37:21"]
[EndDate "2010.12.14"]
[EndTime "03:39:25"]
[Link "https://www.chess.com/game/live/77088406"]

1. d3 {[%clk 0:01:00]} 1... e5 {[%clk 0:01:00]} 2. g3 {[%clk 0:00:59.6]} 2... d5 {[%clk 0:00:59.6]} 3. Bg2 {[%clk 0:00:59.1]} 3... d4 {[%clk 0:00:59.2]} 4. f3 {[%clk 0:00:58.3]} 4... f6 {[%clk 0:00:56.5]} 5. h3 {[%clk 0:00:57.6]} 5... Ne7 {[%clk 0:00:56.2]} 6. g4 {[%clk 0:00:56.9]} 6... Ng6 {[%clk 0:00:55.7]} 7. e3 {[%clk 0:00:54.8]} 7... Nf4 {[%clk 0:00:55.4]} 8. exf4 {[%clk 0:00:54]} 8... exf4 {[%clk 0:00:55.1]} 9. Qe2+ {[%clk 0:00:52.8]} 9... Be7 {[%clk 0:00:52.6]} 10. Bd2 {[%clk 0:00:50.6]} 10... O-O {[%clk 0:00:52.1]} 11. Qf2 {[%clk 0:00:48.9]} 11... Re8 {[%clk 0:00:51.8]} 12. Ne2 {[%clk 0:00:48]} 12... Bb4 {[%clk 0:00:50.2]} 13. c3 {[%clk 0:00:47]} 13... dxc3 {[%clk 0:00:48.6]} 14. bxc3 {[%clk 0:00:45.9]} 14... Ba5 {[%clk 0:00:48.2]} 15. a4 {[%clk 0:00:44]} 15... Nc6 {[%clk 0:00:47.5]} 16. Na3 {[%clk 0:00:43.2]} 16... Bb6 {[%clk 0:00:47.1]} 17. Nc4 {[%clk 0:00:42.1]} 17... Bxf2+ {[%clk 0:00:45.9]} 18. Kxf2 {[%clk 0:00:39.1]} 18... f5 {[%clk 0:00:45.4]} 19. Nd4 {[%clk 0:00:32.9]} 19... fxg4 {[%clk 0:00:43.9]} 20. hxg4 {[%clk 0:00:30.1]} 20... Nxd4 {[%clk 0:00:41.9]} 21. Bxf4 {[%clk 0:00:26.6]} 21... Re2+ {[%clk 0:00:36.4]} 22. Kg3 {[%clk 0:00:24.9]} 22... Bxg4 {[%clk 0:00:33.1]} 23. cxd4 {[%clk 0:00:21.8]} 23... Bxf3 {[%clk 0:00:30.1]} 24. Bxf3 {[%clk 0:00:20.7]} 24... Re6 {[%clk 0:00:26.2]} 25. Ne5 {[%clk 0:00:18.5]} 25... Qxd4 {[%clk 0:00:24.6]} 26. Rhd1 {[%clk 0:00:14.9]} 26... Rg6+ {[%clk 0:00:19.3]} 27. Kh3 {[%clk 0:00:11.7]} 27... Rh6+ {[%clk 0:00:18.1]} 28. Kg4 {[%clk 0:00:10.5]} 28... Qd8 {[%clk 0:00:15.5]} 29. Bxh6 {[%clk 0:00:07.8]} 29... gxh6 {[%clk 0:00:13.7]} 30. Rg1 {[%clk 0:00:05.8]} 30... Qg5+ {[%clk 0:00:13.3]} 31. Kh3 {[%clk 0:00:03]} 31... Kh8 {[%clk 0:00:12]} 32. Rxg5 {[%clk 0:00:01.9]} 32... hxg5 {[%clk 0:00:11.8]} 33. Bg4 {[%clk 0:00:01]} 33... h6 {[%clk 0:00:11.5]} 0-1

[Event "Live Chess"]
[Site "Chess.com"]
[Date "2010.12.14"]
[Round "-"]
[White "hipposcottimus"]
[Black "Beastin01"]
[Result "0-1"]
[CurrentPosition "3R3r/6bk/8/4p1p1/8/8/1P4PP/1N3RK1 w - -"]
[Timezone "UTC"]
[ECO "C00"]
[ECOUrl "https://www.chess.com/openings/French-Defense-Knight-Variation"]
[UTCDate "2010.12.14"]
[UTCTime "03:34:39"]
[WhiteElo "1689"]
[BlackElo "1409"]
[TimeControl "60"]
[Termination "Beastin01 won on time"]
[StartTime "03:34:39"]
[EndDate "2010.12.14"]
[EndTime "03:36:51"]
[Link "https://www.chess.com/game/live/77087858"]

1. e4 {[%clk 0:01:00]} 1... e6 {[%clk 0:01:00]} 2. Nf3 {[%clk 0:00:59.6]} 2... a6 {[%clk 0:00:59.5]} 3. d4 {[%clk 0:00:59.2]} 3... c6 {[%clk 0:00:58.4]} 4. c4 {[%clk 0:00:56.6]} 4... b5 {[%clk 0:00:56.6]} 5. d5 {[%clk 0:00:55.8]} 5... cxd5 {[%clk 0:00:54.6]} 6. cxd5 {[%clk 0:00:54.6]} 6... exd5 {[%clk 0:00:53.1]} 7. Qxd5 {[%clk 0:00:54.3]} 7... Nc6 {[%clk 0:00:50.7]} 8. Ng5 {[%clk 0:00:53.2]} 8... Qe7 {[%clk 0:00:47.2]} 9. a4 {[%clk 0:00:44.1]} 9... h6 {[%clk 0:00:45.2]} 10. axb5 {[%clk 0:00:40.7]} 10... Bb7 {[%clk 0:00:38.5]} 11. bxa6 {[%clk 0:00:29.7]} 11... Rxa6 {[%clk 0:00:32.1]} 12. Bxa6 {[%clk 0:00:27.7]} 12... Bxa6 {[%clk 0:00:28.2]} 13. Rxa6 {[%clk 0:00:27.3]} 13... hxg5 {[%clk 0:00:26.4]} 14. Ra8+ {[%clk 0:00:27]} 14... Nd8 {[%clk 0:00:24.1]} 15. Bxg5 {[%clk 0:00:17.7]} 15... f6 {[%clk 0:00:23]} 16. Bh4 {[%clk 0:00:14.6]} 16... g5 {[%clk 0:00:21.7]} 17. Bg3 {[%clk 0:00:13.2]} 17... Nh6 {[%clk 0:00:17.4]} 18. O-O {[%clk 0:00:12.8]} 18... Ng4 {[%clk 0:00:16]} 19. e5 {[%clk 0:00:12.3]} 19... Nxe5 {[%clk 0:00:14.3]} 20. Bxe5 {[%clk 0:00:11.2]} 20... fxe5 {[%clk 0:00:13.2]} 21. f4 {[%clk 0:00:10.8]} 21... d6 {[%clk 0:00:12.5]} 22. fxe5 {[%clk 0:00:09.3]} 22... dxe5 {[%clk 0:00:09.8]} 23. Re1 {[%clk 0:00:07.4]} 23... Bg7 {[%clk 0:00:08.4]} 24. Qc6+ {[%clk 0:00:04.9]} 24... Kf8 {[%clk 0:00:06.9]} 25. Rf1+ {[%clk 0:00:02.8]} 25... Kg8 {[%clk 0:00:05.1]} 26. Qc8 {[%clk 0:00:02.3]} 26... Qe8 {[%clk 0:00:03.3]} 27. Qxd8 {[%clk 0:00:01.3]} 27... Qxd8 {[%clk 0:00:02.3]} 28. Rxd8+ {[%clk 0:00:01]} 28... Kh7 {[%clk 0:00:01.3]} 0-1

[Event "Live Chess"]
[Site "Chess.com"]
[Date "2010.12.14"]
[Round "-"]
[White "hipposcottimus"]
[Black "leonardodavinci1964"]
[Result "1-0"]
[CurrentPosition "r1bq1rk1/ppp3pQ/2np1b2/6N1/3p1P2/2PB4/P1P3PP/R1B2RK1 b - -"]
[Timezone "UTC"]
[ECO "C00"]
[ECOUrl "https://www.chess.com/openings/Pirc-Defense-Small-Center-Defense"]
[UTCDate "2010.12.14"]
[UTCTime "03:31:39"]
[WhiteElo "1702"]
[BlackElo "1601"]
[TimeControl "60"]
[Termination "hipposcottimus won by checkmate"]
[StartTime "03:31:39"]
[EndDate "2010.12.14"]
[EndTime "03:32:35"]
[Link "https://www.chess.com/game/live/77087299"]

1. e4 {[%clk 0:01:00]} 1... e6 {[%clk 0:01:00]} 2. d4 {[%clk 0:00:58.1]} 2... d6 {[%clk 0:00:59.7]} 3. f4 {[%clk 0:00:56.6]} 3... Be7 {[%clk 0:00:59.3]} 4. Nf3 {[%clk 0:00:55.7]} 4... Nf6 {[%clk 0:00:58.9]} 5. e5 {[%clk 0:00:54.9]} 5... Nd5 {[%clk 0:00:56.7]} 6. Nc3 {[%clk 0:00:52.7]} 6... Nxc3 {[%clk 0:00:54.9]} 7. bxc3 {[%clk 0:00:52.5]} 7... O-O {[%clk 0:00:54.3]} 8. Bd3 {[%clk 0:00:50.2]} 8... f5 {[%clk 0:00:53]} 9. exf6 {[%clk 0:00:48.4]} 9... Bxf6 {[%clk 0:00:52.2]} 10. O-O {[%clk 0:00:45.2]} 10... Nc6 {[%clk 0:00:49]} 11. Ng5 {[%clk 0:00:44.7]} 11... e5 {[%clk 0:00:47.5]} 12. Bxh7+ {[%clk 0:00:41.5]} 12... Kh8 {[%clk 0:00:45.6]} 13. Bd3 {[%clk 0:00:39.5]} 13... exd4 {[%clk 0:00:42.5]} 14. Qh5+ {[%clk 0:00:31.7]} 14... Kg8 {[%clk 0:00:41.3]} 15. Qh7# {[%clk 0:00:30.9]} 1-0

[Event "Live Chess"]
[Site "Chess.com"]
[Date "2010.12.14"]
[Round "-"]
[White "hipposcottimus"]
[Black "El_Pie_Estupendo"]
[Result "1-0"]
[CurrentPosition "r5kr/3b3p/2n1N3/p2pP1Q1/1p1q4/1P1B4/P5PP/R4R1K b - -"]
[Timezone "UTC"]
[ECO "B12"]
[ECOUrl "https://www.chess.com/openings/Caro-Kann-Defense-2.d4"]
[UTCDate "2010.12.14"]
[UTCTime "03:28:32"]
[WhiteElo "1696"]
[BlackElo "1602"]
[TimeControl "60"]
[Termination "hipposcottimus won by checkmate"]
[StartTime "03:28:32"]
[EndDate "2010.12.14"]
[EndTime "03:30:03"]
[Link "https://www.chess.com/game/live/77086657"]

1. e4 {[%clk 0:01:00]} 1... c6 {[%clk 0:01:00]} 2. d4 {[%clk 0:00:58.5]} 2... e6 {[%clk 0:01:00]} 3. e5 {[%clk 0:00:57.6]} 3... d6 {[%clk 0:00:59.7]} 4. f4 {[%clk 0:00:55.7]} 4... f6 {[%clk 0:00:58.8]} 5. Nf3 {[%clk 0:00:54.2]} 5... fxe5 {[%clk 0:00:58.3]} 6. fxe5 {[%clk 0:00:53.7]} 6... d5 {[%clk 0:00:57.6]} 7. Bd3 {[%clk 0:00:51.3]} 7... c5 {[%clk 0:00:57.6]} 8. c3 {[%clk 0:00:49.9]} 8... cxd4 {[%clk 0:00:56.9]} 9. cxd4 {[%clk 0:00:48.2]} 9... Ne7 {[%clk 0:00:56.9]} 10. Nc3 {[%clk 0:00:47]} 10... Nec6 {[%clk 0:00:56.5]} 11. O-O {[%clk 0:00:45.5]} 11... Bd7 {[%clk 0:00:56.5]} 12. Re1 {[%clk 0:00:44.8]} 12... a6 {[%clk 0:00:55]} 13. Bg5 {[%clk 0:00:41.9]} 13... Be7 {[%clk 0:00:53.1]} 14. Qd2 {[%clk 0:00:40.9]} 14... b5 {[%clk 0:00:51.9]} 15. Ne2 {[%clk 0:00:36.5]} 15... b4 {[%clk 0:00:46.6]} 16. Ng3 {[%clk 0:00:35.7]} 16... a5 {[%clk 0:00:46]} 17. b3 {[%clk 0:00:34.8]} 17... Qb6 {[%clk 0:00:39.7]} 18. Nh5 {[%clk 0:00:32.3]} 18... Nxd4 {[%clk 0:00:39]} 19. Nxg7+ {[%clk 0:00:30.6]} 19... Kd8 {[%clk 0:00:35.3]} 20. Bxe7+ {[%clk 0:00:28.3]} 20... Kxe7 {[%clk 0:00:34.6]} 21. Nxd4 {[%clk 0:00:27.6]} 21... Qxd4+ {[%clk 0:00:33.3]} 22. Kh1 {[%clk 0:00:25.5]} 22... Nc6 {[%clk 0:00:31.1]} 23. Qg5+ {[%clk 0:00:25.1]} 23... Kf8 {[%clk 0:00:22.6]} 24. Rf1+ {[%clk 0:00:23]} 24... Kg8 {[%clk 0:00:20.3]} 25. Nxe6# {[%clk 0:00:21.5]} 1-0

[Event "Live Chess"]
[Site "Chess.com"]
[Date "2010.12.14"]
[Round "-"]
[White "hipposcottimus"]
[Black "stancy"]
[Result "1-0"]
[CurrentPosition "rn2R3/p4kpp/1p3q2/8/2p2r2/4Q3/P4PPP/4R1K1 b - -"]
[Timezone "UTC"]
[ECO "B07"]
[ECOUrl "https://www.chess.com/openings/Pirc-Defense-Modern-Defense-Geller-System"]
[UTCDate "2010.12.14"]
[UTCTime "03:26:00"]
[WhiteElo "1690"]
[BlackElo "1457"]
[TimeControl "60"]
[Termination "hipposcottimus won on time"]
[StartTime "03:26:00"]
[EndDate "2010.12.14"]
[EndTime "03:28:05"]
[Link "https://www.chess.com/game/live/77086096"]

1. e4 {[%clk 0:01:00]} 1... d6 {[%clk 0:01:00]} 2. Nf3 {[%clk 0:00:59.4]} 2... Bd7 {[%clk 0:01:00]} 3. d4 {[%clk 0:00:59]} 3... Nf6 {[%clk 0:00:59.3]} 4. e5 {[%clk 0:00:58.5]} 4... Nd5 {[%clk 0:00:57.8]} 5. c4 {[%clk 0:00:57.1]} 5... Nb6 {[%clk 0:00:55.1]} 6. Bf4 {[%clk 0:00:55.8]} 6... d5 {[%clk 0:00:53.1]} 7. c5 {[%clk 0:00:53.9]} 7... Nc4 {[%clk 0:00:51.1]} 8. Bxc4 {[%clk 0:00:53.5]} 8... dxc4 {[%clk 0:00:49.6]} 9. b3 {[%clk 0:00:53.2]} 9... b5 {[%clk 0:00:48.5]} 10. cxb6 {[%clk 0:00:52.2]} 10... cxb6 {[%clk 0:00:46.6]} 11. bxc4 {[%clk 0:00:51.9]} 11... Qc7 {[%clk 0:00:44.7]} 12. Na3 {[%clk 0:00:47.8]} 12... Qc6 {[%clk 0:00:42.5]} 13. Qc1 {[%clk 0:00:42.4]} 13... e6 {[%clk 0:00:40.3]} 14. d5 {[%clk 0:00:40.2]} 14... exd5 {[%clk 0:00:38.8]} 15. Nc2 {[%clk 0:00:32.7]} 15... dxc4 {[%clk 0:00:36.1]} 16. O-O {[%clk 0:00:32.4]} 16... Be7 {[%clk 0:00:34]} 17. Ncd4 {[%clk 0:00:31.2]} 17... Qc5 {[%clk 0:00:31.8]} 18. e6 {[%clk 0:00:29.4]} 18... Bxe6 {[%clk 0:00:29.4]} 19. Nxe6 {[%clk 0:00:29.1]} 19... fxe6 {[%clk 0:00:28.1]} 20. Re1 {[%clk 0:00:28.5]} 20... O-O {[%clk 0:00:25.8]} 21. Be3 {[%clk 0:00:28.1]} 21... Qh5 {[%clk 0:00:21.7]} 22. Bg5 {[%clk 0:00:23.3]} 22... Bxg5 {[%clk 0:00:15.5]} 23. Nxg5 {[%clk 0:00:22.8]} 23... Rf5 {[%clk 0:00:14.1]} 24. Nxe6 {[%clk 0:00:20.5]} 24... Qg6 {[%clk 0:00:09.8]} 25. Nf4 {[%clk 0:00:19.7]} 25... Qf6 {[%clk 0:00:07.1]} 26. Re8+ {[%clk 0:00:16.5]} 26... Kf7 {[%clk 0:00:05.4]} 27. Qe3 {[%clk 0:00:15.2]} 27... Rxf4 {[%clk 0:00:03.2]} 28. Re1 {[%clk 0:00:05.6]} 1-0

[Event "Live Chess"]
[Site "Chess.com"]
[Date "2010.12.14"]
[Round "-"]
[White "hackbuddy"]
[Black "hipposcottimus"]
[Result "0-1"]
[CurrentPosition "8/8/3p1kqK/p4p2/1P1p4/8/8/8 w - -"]
[Timezone "UTC"]
[ECO "C20"]
[ECOUrl "https://www.chess.com/openings/Kings-Pawn-Opening-Wayward-Queen-Attack-2...Nc6-3.Bc4"]
[UTCDate "2010.12.14"]
[UTCTime "03:21:48"]
[WhiteElo "1445"]
[BlackElo "1687"]
[TimeControl "60"]
[Termination "hipposcottimus won by checkmate"]
[StartTime "03:21:48"]
[EndDate "2010.12.14"]
[EndTime "03:23:45"]
[Link "https://www.chess.com/game/live/77085176"]

1. e4 {[%clk 0:01:00]} 1... e5 {[%clk 0:01:00]} 2. Qh5 {[%clk 0:00:59.2]} 2... Nc6 {[%clk 0:00:58.8]} 3. Bc4 {[%clk 0:00:58.9]} 3... g6 {[%clk 0:00:55.1]} 4. Qf3 {[%clk 0:00:58.9]} 4... Nf6 {[%clk 0:00:54.2]} 5. Qc3 {[%clk 0:00:58.4]} 5... d6 {[%clk 0:00:51.8]} 6. Qb3 {[%clk 0:00:58]} 6... Qe7 {[%clk 0:00:47.3]} 7. Bxf7+ {[%clk 0:00:55.3]} 7... Qxf7 {[%clk 0:00:45.8]} 8. Qxf7+ {[%clk 0:00:55.3]} 8... Kxf7 {[%clk 0:00:45.4]} 9. Nf3 {[%clk 0:00:54.9]} 9... Kg7 {[%clk 0:00:45.1]} 10. d3 {[%clk 0:00:54.8]} 10... Be7 {[%clk 0:00:44.8]} 11. Bg5 {[%clk 0:00:54]} 11... Nd4 {[%clk 0:00:43.5]} 12. Bxf6+ {[%clk 0:00:53.4]} 12... Bxf6 {[%clk 0:00:40.9]} 13. Nxd4 {[%clk 0:00:53.4]} 13... exd4 {[%clk 0:00:40.7]} 14. c3 {[%clk 0:00:53]} 14... c5 {[%clk 0:00:37.6]} 15. cxd4 {[%clk 0:00:51.4]} 15... Bxd4 {[%clk 0:00:37.2]} 16. Nc3 {[%clk 0:00:48.7]} 16... b5 {[%clk 0:00:35]} 17. Rc1 {[%clk 0:00:48.1]} 17... b4 {[%clk 0:00:33.8]} 18. Nd5 {[%clk 0:00:46.4]} 18... Bb7 {[%clk 0:00:32.2]} 19. Nc7 {[%clk 0:00:44.5]} 19... Rac8 {[%clk 0:00:29.5]} 20. Ne6+ {[%clk 0:00:44.1]} 20... Kf6 {[%clk 0:00:27.6]} 21. Nxd4 {[%clk 0:00:44.1]} 21... cxd4 {[%clk 0:00:26.1]} 22. Rxc8 {[%clk 0:00:43.7]} 22... Rxc8 {[%clk 0:00:25.6]} 23. Ke2 {[%clk 0:00:43]} 23... Ba6 {[%clk 0:00:25.3]} 24. Rd1 {[%clk 0:00:40.9]} 24... Rc2+ {[%clk 0:00:24.7]} 25. Rd2 {[%clk 0:00:39.3]} 25... Rxd2+ {[%clk 0:00:24.2]} 26. Kxd2 {[%clk 0:00:38.6]} 26... Bb7 {[%clk 0:00:23.7]} 27. f3 {[%clk 0:00:37.7]} 27... a5 {[%clk 0:00:23.5]} 28. b3 {[%clk 0:00:35.9]} 28... Ke5 {[%clk 0:00:23.2]} 29. a4 {[%clk 0:00:35.4]} 29... bxa3 {[%clk 0:00:21.2]} 30. g3 {[%clk 0:00:34.1]} 30... a2 {[%clk 0:00:20.4]} 31. f4+ {[%clk 0:00:33.8]} 31... Ke6 {[%clk 0:00:18.7]} 32. f5+ {[%clk 0:00:32.5]} 32... Kf7 {[%clk 0:00:18]} 33. e5 {[%clk 0:00:31]} 33... gxf5 {[%clk 0:00:16.7]} 34. e6+ {[%clk 0:00:30.1]} 34... Kxe6 {[%clk 0:00:14]} 35. h4 {[%clk 0:00:30.1]} 35... a1=Q {[%clk 0:00:12.9]} 36. g4 {[%clk 0:00:30.1]} 36... Qc3+ {[%clk 0:00:11.8]} 37. Ke2 {[%clk 0:00:28.3]} 37... Bf3+ {[%clk 0:00:11.2]} 38. Kxf3 {[%clk 0:00:28.1]} 38... Qxd3+ {[%clk 0:00:10.8]} 39. Kf4 {[%clk 0:00:27.7]} 39... Qe4+ {[%clk 0:00:10.3]} 40. Kg5 {[%clk 0:00:27.7]} 40... Qxg4+ {[%clk 0:00:09.1]} 41. Kh6 {[%clk 0:00:24.7]} 41... Qxh4+ {[%clk 0:00:08.5]} 42. Kg7 {[%clk 0:00:24.7]} 42... Qf6+ {[%clk 0:00:07.8]} 43. Kxh7 {[%clk 0:00:23.2]} 43... Qf7+ {[%clk 0:00:07.1]} 44. Kh6 {[%clk 0:00:21.7]} 44... Kf6 {[%clk 0:00:06.5]} 45. b4 {[%clk 0:00:19.5]} 45... Qg6# {[%clk 0:00:06]} 0-1

[Event "Live Chess"]
[Site "Chess.com"]
[Date "2010.12.14"]
[Round "-"]
[White "71santiniF-4"]
[Black "hipposcottimus"]
[Result "0-1"]
[CurrentPosition "8/p6p/1b2p1p1/6P1/4kP2/3r1RKP/8/8 w - -"]
[Timezone "UTC"]
[ECO "A00"]
[ECOUrl "https://www.chess.com/openings/Anderssen-Opening-1...e5-2.b3-d5"]
[UTCDate "2010.12.14"]
[UTCTime "03:19:06"]
[WhiteElo "1423"]
[BlackElo "1684"]
[TimeControl "60"]
[Termination "hipposcottimus won on time"]
[StartTime "03:19:06"]
[EndDate "2010.12.14"]
[EndTime "03:21:17"]
[Link "https://www.chess.com/game/live/77084612"]

1. a3 {[%clk 0:01:00]} 1... e5 {[%clk 0:01:00]} 2. b3 {[%clk 0:00:59.4]} 2... d5 {[%clk 0:00:59.7]} 3. Bb2 {[%clk 0:00:58.9]} 3... c5 {[%clk 0:00:59.1]} 4. Bxe5 {[%clk 0:00:56.8]} 4... Bd6 {[%clk 0:00:56.5]} 5. Bb2 {[%clk 0:00:56.3]} 5... Nf6 {[%clk 0:00:48.2]} 6. Bxf6 {[%clk 0:00:54.3]} 6... O-O {[%clk 0:00:47.9]} 7. Ra2 {[%clk 0:00:53.9]} 7... Qxf6 {[%clk 0:00:46.6]} 8. e3 {[%clk 0:00:53.2]} 8... d4 {[%clk 0:00:44.3]} 9. Qf3 {[%clk 0:00:52.6]} 9... Qxf3 {[%clk 0:00:41.6]} 10. Nxf3 {[%clk 0:00:51.4]} 10... dxe3 {[%clk 0:00:41.4]} 11. dxe3 {[%clk 0:00:49.6]} 11... Bg4 {[%clk 0:00:41]} 12. h3 {[%clk 0:00:47.4]} 12... Be6 {[%clk 0:00:40.6]} 13. Bc4 {[%clk 0:00:44.6]} 13... Nc6 {[%clk 0:00:40.3]} 14. Bxe6 {[%clk 0:00:43.2]} 14... fxe6 {[%clk 0:00:40.1]} 15. O-O {[%clk 0:00:39.8]} 15... Ne5 {[%clk 0:00:39.8]} 16. Nxe5 {[%clk 0:00:38.3]} 16... Bxe5 {[%clk 0:00:39.5]} 17. Nd2 {[%clk 0:00:37.5]} 17... Bc7 {[%clk 0:00:38.9]} 18. Nc4 {[%clk 0:00:36.1]} 18... Rad8 {[%clk 0:00:38.3]} 19. c3 {[%clk 0:00:33.8]} 19... b5 {[%clk 0:00:37.9]} 20. Rd2 {[%clk 0:00:32.2]} 20... bxc4 {[%clk 0:00:36.1]} 21. Rxd8 {[%clk 0:00:31]} 21... Rxd8 {[%clk 0:00:35.9]} 22. bxc4 {[%clk 0:00:30.2]} 22... Rd3 {[%clk 0:00:35]} 23. Rc1 {[%clk 0:00:27.6]} 23... Rd2 {[%clk 0:00:33.4]} 24. Kf1 {[%clk 0:00:25.7]} 24... Ra2 {[%clk 0:00:32.9]} 25. Rb1 {[%clk 0:00:23.5]} 25... Rxa3 {[%clk 0:00:31.7]} 26. Rb7 {[%clk 0:00:22]} 26... Bb6 {[%clk 0:00:29.7]} 27. Rb8+ {[%clk 0:00:21]} 27... Kf7 {[%clk 0:00:28.9]} 28. Rb7+ {[%clk 0:00:20.3]} 28... Kf6 {[%clk 0:00:28.7]} 29. Rd7 {[%clk 0:00:18.7]} 29... Rxc3 {[%clk 0:00:27.6]} 30. Rd6 {[%clk 0:00:17.7]} 30... Rc1+ {[%clk 0:00:27.1]} 31. Ke2 {[%clk 0:00:15.8]} 31... Rxc4 {[%clk 0:00:26.8]} 32. Kf3 {[%clk 0:00:15.3]} 32... Ra4 {[%clk 0:00:26]} 33. g4 {[%clk 0:00:14.9]} 33... Rb4 {[%clk 0:00:25.2]} 34. Kg3 {[%clk 0:00:13.7]} 34... c4 {[%clk 0:00:24.9]} 35. f4 {[%clk 0:00:12.4]} 35... c3 {[%clk 0:00:24.4]} 36. g5+ {[%clk 0:00:11.7]} 36... Kf5 {[%clk 0:00:23.9]} 37. Rd4 {[%clk 0:00:09.8]} 37... Rb3 {[%clk 0:00:21.2]} 38. Rd3 {[%clk 0:00:07.7]} 38... g6 {[%clk 0:00:20.2]} 39. e4+ {[%clk 0:00:06]} 39... Kxe4 {[%clk 0:00:13.5]} 40. Rf3 {[%clk 0:00:03.3]} 40... Rb4 {[%clk 0:00:10.9]} 41. Rxc3 {[%clk 0:00:01.4]} 41... Rd4 {[%clk 0:00:10.6]} 42. Rf3 {[%clk 0:00:00.3]} 42... Rd3 {[%clk 0:00:09.8]} 0-1

[Event "Live Chess"]
[Site "Chess.com"]
[Date "2010.12.14"]
[Round "-"]
[White "hipposcottimus"]
[Black "hotchess"]
[Result "0-1"]
[CurrentPosition "5rk1/pp3p1p/4b1p1/3p4/8/5r2/P4qPP/4RK2 w - -"]
[Timezone "UTC"]
[ECO "B06"]
[ECOUrl "https://www.chess.com/openings/Modern-Defense-Pterodactyl-Defense-with-3-c4"]
[UTCDate "2010.12.14"]
[UTCTime "01:06:01"]
[WhiteElo "1684"]
[BlackElo "1969"]
[TimeControl "60"]
[Termination "hotchess won by checkmate"]
[StartTime "01:06:01"]
[EndDate "2010.12.14"]
[EndTime "01:07:15"]
[Link "https://www.chess.com/game/live/77055352"]

1. e4 {[%clk 0:01:00]} 1... g6 {[%clk 0:01:00]} 2. d4 {[%clk 0:00:58]} 2... Bg7 {[%clk 0:00:59.5]} 3. c4 {[%clk 0:00:57.7]} 3... c5 {[%clk 0:00:58.8]} 4. e5 {[%clk 0:00:57.2]} 4... cxd4 {[%clk 0:00:58]} 5. Qxd4 {[%clk 0:00:55.6]} 5... Nc6 {[%clk 0:00:57.5]} 6. Qe4 {[%clk 0:00:55.3]} 6... Bxe5 {[%clk 0:00:56.6]} 7. Nc3 {[%clk 0:00:54.2]} 7... Qb6 {[%clk 0:00:55.6]} 8. Nf3 {[%clk 0:00:53.8]} 8... Bxc3+ {[%clk 0:00:54.4]} 9. bxc3 {[%clk 0:00:52.3]} 9... Nf6 {[%clk 0:00:53.8]} 10. Be2 {[%clk 0:00:51.9]} 10... Nxe4 {[%clk 0:00:52.5]} 11. Be3 {[%clk 0:00:50.8]} 11... Qb2 {[%clk 0:00:49.8]} 12. O-O {[%clk 0:00:49.9]} 12... Qxe2 {[%clk 0:00:48.6]} 13. Ng5 {[%clk 0:00:48.2]} 13... Nxg5 {[%clk 0:00:47]} 14. Bxg5 {[%clk 0:00:48]} 14... Qxc4 {[%clk 0:00:45.9]} 15. Rfe1 {[%clk 0:00:45.4]} 15... O-O {[%clk 0:00:44.9]} 16. Bxe7 {[%clk 0:00:43.6]} 16... Nxe7 {[%clk 0:00:44.1]} 17. Rxe7 {[%clk 0:00:43.4]} 17... Qxc3 {[%clk 0:00:40.9]} 18. Rae1 {[%clk 0:00:43.1]} 18... d5 {[%clk 0:00:39.7]} 19. R7e3 {[%clk 0:00:42.3]} 19... Qd4 {[%clk 0:00:37.3]} 20. R3e2 {[%clk 0:00:41.5]} 20... Be6 {[%clk 0:00:35.6]} 21. Kf1 {[%clk 0:00:39.1]} 21... Rac8 {[%clk 0:00:34.4]} 22. f3 {[%clk 0:00:38.8]} 22... Rc3 {[%clk 0:00:32.7]} 23. Rb2 {[%clk 0:00:33.2]} 23... Rxf3+ {[%clk 0:00:28.3]} 24. Rf2 {[%clk 0:00:32.9]} 24... Qxf2# {[%clk 0:00:25.9]} 0-1